fUSD/lending_fUSD_20250330
["ID","MTS","AMOUNT","RATE_DAILY","PERIOD"]
[356832525,1743293233146,205.30298,0.00015,13]
[356832527,1743293234706,1800.0,0.000146,5]
[356832528,1743293236794,1559.50572072,0.000147,5]
[356832529,1743293236816,2140.49427928,0.000147,5]
[356832533,1743293373837,-1940.75375472,0.000148,5]
[356832537,1743293432440,-1194.47492542,0.000148,5]
[356832641,1743293440498,-1689.11728348,0.000148,5]
[356832642,1743293440659,-775.65403638,0.000148,5]
[356832643,1743293440669,-209.03025951,0.000149,2]
[356832644,1743293440679,-7500.0,0.000149,5]
[356832645,1743293440690,-164.59605925,0.000149,2]
[356832646,1743293440703,-175.95055488,0.000149,2]
[356832647,1743293440713,-2861.34216144,0.000149,2]
[356832648,1743293440725,-14513.42692854,0.000149,2]
[356832649,1743293440765,-4057.96060902,0.000149,2]
[356832650,1743293440777,-500.0,0.00014973,2]
[356832651,1743293440788,-8224.12951902,0.00015,2]
[356832672,1743293446459,-123.79271365,0.00015,2]
[356832676,1743293586835,157.81866811,0.00014619,2]
[356832677,1743293910626,201.952,0.000147,2]
[356832678,1743293969305,166.22999999,0.000148,2]
[356832682,1743294434637,1000.0,0.000145,5]
[356832683,1743294436736,2000.0,0.000146,5]
[356832688,1743294438830,3100.0,0.000147,5]
[356832690,1743294446416,829.204122,0.00014725,2]
[356832692,1743294485829,-157.98384103,0.000148,5]
[356832694,1743294493609,-437.24,0.000148,5]
[356832695,1743294497048,-166.99,0.000148,5]
[356832698,1743294506976,-2349.51022102,0.000148,5]
[356832703,1743294507179,-314.08808017,0.000148,5]
[356832707,1743294536049,-151.0,0.000148,5]
[356832708,1743294538116,-151.0,0.000148,5]
[356832768,1743294560752,-162.44512709,0.000148,5]
[356832781,1743294576912,-150.0,0.000148,5]
[356832782,1743294582490,-59.74273069,0.000148,5]
[356832783,1743294582518,-90.27339454,0.00014899,2]
[356832784,1743294606929,-200.19612271,0.000149,2]
[356832785,1743294616118,-187.87681593,0.000149,2]
[356832786,1743294623045,-200.19612271,0.00014825,2]
[356832787,1743294624684,-151.0,0.000149,2]
[356832788,1743294626748,-1302.98215458,0.000149,2]
[356832793,1743294631714,-1287.02279011,0.000149,2]
[356832818,1743294633813,-300.0,0.000149,2]
[356832823,1743294640148,-0.01049988,0.000149,2]
[356832828,1743294641034,-150.0,0.000149,2]
[356832841,1743294642682,-5401.26520213,0.000149,2]
[356832842,1743294642695,-10941.41113211,0.000149,2]
[356832843,1743294642706,-281.01686172,0.000149,2]
[356832844,1743294642716,-197.34531287,0.000149,5]
[356832850,1743294644655,-202.59119274,0.000149,5]
[356832899,1743294662820,-300.0,0.000149,5]
[356832900,1743294702224,-153.0726,0.000149,5]
[356832901,1743294717601,-150.0,0.000149,5]
[356832902,1743294723592,186.19677831,0.00014759,2]
[356832903,1743294729259,-152.35,0.000149,5]
[356832904,1743294735444,-197.973586,0.000149,5]
[356832905,1743294743002,218.10415231,0.000148,2]
[356832906,1743294743025,178.88786245,0.000148,2]
[356832907,1743294750167,-152.35,0.000149,5]
[356832908,1743294772819,-152.35,0.00014825,2]
[356832909,1743294772844,-5.557721,0.000149,5]
[356832911,1743294842643,-250.0,0.00014899,2]
[356832912,1743294944406,396.99201476,0.000148,2]
[356832913,1743295023297,205.30298,0.000149,13]
[356832915,1743295110691,198.928,0.000147,2]
[356832916,1743295341151,5552.0,0.000146,5]
[356832922,1743295634879,400.0,0.000145,5]
[356832923,1743295636962,900.0,0.000146,5]
[356832924,1743295639061,1400.0,0.000147,5]
[356832928,1743295702224,-251.44351955,0.000148,5]
[356832931,1743295793112,188.18159935,0.00014799,2]
[356832939,1743295831978,-1648.55648045,0.000148,5]
[356832940,1743295831988,-175.95055488,0.000149,2]
[356832941,1743295831998,-1478.34229614,0.000149,2]
[356832942,1743295832040,-21.91560386,0.000149,2]
[356832943,1743295832052,-188.3273,0.000149,2]
[356832944,1743295832062,-633.43484701,0.000149,2]
[356832945,1743295832072,-156.32224913,0.000149,5]
[356832946,1743295832083,-360.70058689,0.000149,5]
[356833049,1743295834955,735.44328847,0.000148,2]
[356833081,1743295840503,-0.00319151,0.000149,5]
[356833130,1743295845780,-518.11771717,0.000149,5]
[356833131,1743295846103,-1364.8562553,0.000149,5]
[356833132,1743295846114,-184.49178975,0.000149,2]
[356833133,1743295846124,-193.43672273,0.000149,2]
[356833134,1743295846133,-188.18159935,0.000149,2]
[356833135,1743295846143,-1975.98881991,0.000149,2]
[356833138,1743296084541,49.56723497,0.000148,2]
[356833139,1743296084562,138.61436438,0.000148,2]
[356833140,1743296211636,179.16,0.00013372,2]
[356833143,1743296813589,-1914.0,0.000149,2]
[356833144,1743296823557,205.30298,0.000149,13]
[356833145,1743296824981,300.0,0.000145,5]
[356833146,1743296827085,600.0,0.000146,5]
[356833147,1743296829178,1000.0,0.000147,5]
[356833152,1743297031909,-712.85880533,0.000148,5]
[356833153,1743297031967,-397.6223157,0.000148,5]
[356833154,1743297031979,-189.51887897,0.000148,5]
[356833155,1743297031989,-300.0,0.00014899,2]
[356833156,1743297031998,-1989.0286,0.000149,2]
[356833157,1743297032009,-1700.0,0.000149,5]
[356833158,1743297032019,-18079.82044988,0.000149,2]
[356833159,1743297032028,-570.0913623,0.000149,2]
[356833160,1743297032038,-1391.1281,0.000149,2]
[356833161,1743297032047,-500.0,0.00014973,2]
[356833162,1743297032057,-300.0,0.00014999,2]
[356833163,1743297032066,-300.0,0.00014999,2]
[356833164,1743297032076,-33243.43258346,0.00015,2]
[356833165,1743297032088,-736.88402463,0.00015,2]
[356833173,1743297032322,-660.17354352,0.00015,2]
[356833314,1743297038069,-2110.78178767,0.00015,2]
[356833315,1743297038133,-12947.85801594,0.00015,2]
[356833316,1743297038157,-4467.24045872,0.00015,2]
[356833317,1743297038191,-1849.37430655,0.00015,2]
[356833318,1743297038203,-1416.61649412,0.00015,2]
[356833319,1743297038250,-31500.0,0.00015,2]
[356833360,1743297040086,-655.97616951,0.00015,2]
[356833362,1743297040098,-46904.7235561,0.00015,2]
[356833364,1743297040113,-195366.13560887,0.00015,2]
[356833476,1743297043365,-322.39071347,0.00015,2]
[356833477,1743297044778,-2802.68620606,0.00015,2]
[356833483,1743297046000,-29633.14915121,0.00015,2]
[356833484,1743297046227,-1113.77873316,0.00015,2]
[356833489,1743297378531,-150.0,0.000148,2]
[356833490,1743297420734,260.1035383,0.00014783,2]
[356833491,1743297465586,195.0776538,0.00014783,2]
[356833492,1743297510597,195.0776538,0.00014783,2]
[356833493,1743297555646,195.0776538,0.00014783,2]
[356833494,1743297600707,195.0776538,0.00014783,2]
[356833495,1743297794863,150.0,0.00014773,2]
[356833496,1743297936342,-11.05466024,0.000148,2]
[356833497,1743297936365,-146.92918079,0.000148,2]
[356833506,1743298131445,-796.07081921,0.000148,2]
[356833508,1743298131476,-150.0,0.0001482,2]
[356833510,1743298131503,-150.0,0.0001485,2]
[356833512,1743298131532,-157.98384103,0.0001485,2]
[356833514,1743298131559,-150.0,0.00014889,2]
[356833515,1743298131587,-300.0,0.00014889,2]
[356833516,1743298131617,-6358.68762349,0.0001489,2]
[356833517,1743298131654,-3080.6236912,0.0001489,2]
[356833528,1743298232234,-459.12276047,0.0001489,2]
[356833529,1743298232314,-1367.04497241,0.0001489,2]
[356833531,1743298238405,-849.7,0.0001489,2]
[356833532,1743298238556,-401.01492752,0.0001489,2]
[356833533,1743298238572,-548.55281673,0.0001489,2]
[356833534,1743298238587,-48756.42295695,0.0001489,2]
[356833560,1743298240497,-9502.67247795,0.0001489,2]
[356833563,1743298240512,-14954.28515239,0.0001489,2]
[356833588,1743298240769,-14538.41971945,0.0001489,2]
[356833589,1743298240782,-13802.6401,0.000149,2]
[356833590,1743298240795,-1032.709,0.000149,2]
[356833591,1743298240808,-150.90343232,0.000149,2]
[356833592,1743298240820,-1000.0,0.000149,2]
[356833594,1743298240833,-620.3955,0.000149,2]
[356833596,1743298240845,-9807.6915934,0.000149,2]
[356833598,1743298240863,-290.84288495,0.000149,2]
[356833601,1743298240876,-2500.0,0.000149,2]
[356833603,1743298240888,-290.6911452,0.000149,2]
[356833605,1743298240900,-2712.87484897,0.000149,2]
[356833608,1743298240913,-482.15,0.00014924,2]
[356833610,1743298240924,-300.0,0.00014999,2]
[356833612,1743298240939,-532.0,0.00015,2]
[356833614,1743298240952,-1184648.75271039,0.00015,2]
[356833616,1743298240965,-990633.59883398,0.00015,2]
[356833619,1743298240979,-1831356.36584384,0.00015,2]
[356833621,1743298240991,-302758.47074624,0.00015,2]
[356833623,1743298241004,-151.0,0.00015,2]
[356833626,1743298241017,-152.924929,0.00015,2]
[356833628,1743298241030,-151.0,0.00015,2]
[356833630,1743298241042,-151.0,0.00015,2]
[356833632,1743298241054,-151.0,0.00015,2]
[356833634,1743298241065,-151.0,0.00015,2]
[356833637,1743298241078,-151.0,0.00015,2]
[356833639,1743298241089,-151.0,0.00015,2]
[356833641,1743298241102,-151.0,0.00015,2]
[356833643,1743298241116,-151.0,0.00015,2]
[356833646,1743298241128,-151.0,0.00015,2]
[356833648,1743298241141,-151.0,0.00015,2]
[356833650,1743298241152,-151.0,0.00015,2]
[356833652,1743298241164,-151.0,0.00015,2]
[356833655,1743298241175,-151.493696,0.00015,2]
[356833657,1743298241185,-151.0,0.00015,2]
[356833659,1743298241199,-151.0,0.00015,2]
[356833661,1743298241209,-151.0,0.00015,2]
[356833663,1743298241220,-151.0,0.00015,2]
[356833665,1743298241230,-151.0,0.00015,2]
[356833667,1743298241242,-151.0,0.00015,2]
[356833670,1743298241255,-151.0,0.00015,2]
[356833672,1743298241268,-151.0,0.00015,2]
[356833674,1743298241279,-151.0,0.00015,2]
[356833676,1743298241290,-290.513564,0.00015,2]
[356833679,1743298241300,-151.0,0.00015,2]
[356833681,1743298241310,-151.0,0.00015,2]
[356833683,1743298241320,-151.0,0.00015,2]
[356833685,1743298241330,-151.0,0.00015,2]
[356833687,1743298241345,-151.0,0.00015,2]
[356833690,1743298241356,-151.0,0.00015,2]
[356833692,1743298241368,-151.0,0.00015,2]
[356833694,1743298241379,-151.0,0.00015,2]
[356833697,1743298241394,-151.0,0.00015,2]
[356833699,1743298241406,-151.0,0.00015,2]
[356833701,1743298241417,-151.0,0.00015,2]
[356833704,1743298241428,-204.7922,0.00015,2]
[356833706,1743298241439,-151.0,0.00015,2]
[356833708,1743298241450,-151.0,0.00015,2]
[356833710,1743298241462,-151.0,0.00015,2]
[356833712,1743298241473,-151.0,0.00015,2]
[356833715,1743298241485,-151.0,0.00015,2]
[356833717,1743298241496,-151.0,0.00015,2]
[356833719,1743298241508,-151.0,0.00015,2]
[356833721,1743298241519,-151.0,0.00015,2]
[356833723,1743298241530,-151.0,0.00015,2]
[356833726,1743298241542,-151.0,0.00015,2]
[356833728,1743298241552,-151.0,0.00015,2]
[356833730,1743298241563,-151.0,0.00015,2]
[356833732,1743298241575,-151.0,0.00015,2]
[356833734,1743298241586,-151.0,0.00015,2]
[356833736,1743298241598,-151.0,0.00015,2]
[356833739,1743298241610,-151.0,0.00015,2]
[356833740,1743298241622,-151.0,0.00015,2]
[356833741,1743298241632,-151.0,0.00015,2]
[356833742,1743298241643,-151.0,0.00015,2]
[356833743,1743298241655,-151.0,0.00015,2]
[356833746,1743298241666,-151.0,0.00015,2]
[356833748,1743298241677,-151.0,0.00015,2]
[356833750,1743298241688,-151.0,0.00015,2]
[356833752,1743298241700,-151.0,0.00015,2]
[356833754,1743298241714,-151.0,0.00015,2]
[356833757,1743298241725,-151.0,0.00015,2]
[356833759,1743298241736,-151.0,0.00015,2]
[356833761,1743298241748,-151.0,0.00015,2]
[356833763,1743298241760,-151.0,0.00015,2]
[356833766,1743298241771,-278.48205791,0.00015,2]
[356833767,1743298241784,-151.0,0.00015,2]
[356833768,1743298241795,-151.548439,0.00015,2]
[356833769,1743298241805,-151.0,0.00015,2]
[356833770,1743298241819,-151.0,0.00015,2]
[356833771,1743298241830,-151.0,0.00015,2]
[356833772,1743298241840,-151.0,0.00015,2]
[356833773,1743298241851,-151.0,0.00015,2]
[356833774,1743298241862,-151.0,0.00015,2]
[356833775,1743298241873,-151.0,0.00015,2]
[356833776,1743298241884,-151.0,0.00015,2]
[356833777,1743298241895,-151.0,0.00015,2]
[356833778,1743298241907,-151.0,0.00015,2]
[356833779,1743298241918,-151.0,0.00015,2]
[356833780,1743298241929,-151.0,0.00015,2]
[356833781,1743298241940,-151.0,0.00015,2]
[356833782,1743298241951,-151.0,0.00015,2]
[356833783,1743298241963,-151.0,0.00015,2]
[356833784,1743298241974,-151.0,0.00015,2]
[356833785,1743298241986,-151.0,0.00015,2]
[356833786,1743298241997,-151.0,0.00015,2]
[356833787,1743298242008,-151.0,0.00015,2]
[356833788,1743298242020,-151.0,0.00015,2]
[356833789,1743298242030,-151.0,0.00015,2]
[356833790,1743298242042,-151.0,0.00015,2]
[356833791,1743298242052,-151.0,0.00015,2]
[356833792,1743298242063,-151.0,0.00015,2]
[356833793,1743298242075,-151.0,0.00015,2]
[356833794,1743298242086,-151.0,0.00015,2]
[356833795,1743298242097,-151.0,0.00015,2]
[356833796,1743298242108,-151.0,0.00015,2]
[356833797,1743298242120,-151.0,0.00015,2]
[356833798,1743298242131,-151.0,0.00015,2]
[356833799,1743298242143,-151.0,0.00015,2]
[356833800,1743298242155,-151.0,0.00015,2]
[356833801,1743298242168,-151.0,0.00015,2]
[356833802,1743298242179,-151.0,0.00015,2]
[356833803,1743298242191,-151.0,0.00015,2]
[356833804,1743298242203,-151.0,0.00015,2]
[356833805,1743298242214,-151.0,0.00015,2]
[356833806,1743298242225,-151.0,0.00015,2]
[356833807,1743298242236,-151.0,0.00015,2]
[356833808,1743298242247,-151.0,0.00015,2]
[356833809,1743298242257,-151.0,0.00015,2]
[356833810,1743298242267,-151.0,0.00015,2]
[356833811,1743298242277,-151.916278,0.00015,2]
[356833812,1743298242287,-151.0,0.00015,2]
[356833813,1743298242296,-151.0,0.00015,2]
[356833814,1743298242508,-151.0,0.00015,2]
[356833815,1743298242531,-563786.39724141,0.00015,2]
[356833816,1743298242550,-4726.16,0.00015,2]
[356833836,1743298243322,-274.29183431,0.00015,2]
[356833841,1743298246544,-251.77088984,0.00015,2]
[356833842,1743298380615,233.5031898,0.00014783,2]
[356833843,1743298442021,-150.0,0.00014899,2]
[356833844,1743298442044,-50.19612271,0.00014899,2]
[356833845,1743298622640,-187.87681593,0.00014899,2]
[356833846,1743298623853,257.11036226,0.00015,13]
[356833847,1743298682652,-151.0,0.00014899,2]
[356833848,1743298713289,-149.0,0.00014899,2]
[356833849,1743298713314,-25.58365821,0.00014899,2]
[356833850,1743298742348,-149.0,0.00014899,2]
[356833851,1743298742373,-151.0,0.00014899,2]
[356833852,1743298802966,-300.0,0.0001489,2]
[356833853,1743298804606,-528.39849637,0.0001489,2]
[356833854,1743298863744,-300.0,0.0001489,2]
[356833855,1743298888662,-150.0,0.000148,2]
[356833856,1743298982182,-202.59119274,0.000148,2]
[356833857,1743299007075,-300.0,0.000148,2]
[356833858,1743299044621,-153.0726,0.000148,2]
[356833859,1743299070710,-150.0,0.000148,2]
[356833860,1743299075351,-152.35,0.000148,2]
[356833861,1743299089409,-197.973586,0.000148,2]
[356833862,1743299095631,-152.35,0.000148,2]
[356833869,1743299226473,-250.0,0.000148,2]
[356833873,1743299239002,-151.6906,0.000148,2]
[356833874,1743299239430,1043.98968403,0.0003296,45]
[356833879,1743299263549,-152.35,0.000148,2]
[356833880,1743299269823,-168.48,0.000148,2]
[356833881,1743299312430,160.41499,0.00015,13]
[356833882,1743299358603,-302.9711,0.000148,2]
[356833883,1743299358632,-223.8528,0.000148,2]
[356833884,1743299358659,-158.4194,0.000148,2]
[356833885,1743299358687,-6660.8851,0.000148,2]
[356833886,1743299358713,-720.89768953,0.000148,2]
[356833887,1743299359535,-213.12966376,0.000148,2]
[356833888,1743299411812,1200.0,0.00012,2]
[356833892,1743299432326,-247.83964671,0.000148,2]
[356833893,1743299432336,-1173.64068067,0.000148,2]
[356833894,1743299432346,-268.2313,0.000148,2]
[356833895,1743299432355,-2500.0,0.000148,2]
[356833896,1743299432365,-213.6077,0.000148,2]
[356833897,1743299432375,-189.68002634,0.0001485,2]
[356833898,1743299432384,-4699.93871804,0.0001489,2]
[356833899,1743299432394,-13850.0648,0.000149,2]
[356833900,1743299432403,-522.8852,0.000149,2]
[356833901,1743299432413,-1039.2483,0.000149,2]
[356833902,1743299432422,-1000.0,0.000149,2]
[356833903,1743299432433,-203012.9202,0.000149,2]
[356833904,1743299432443,-17749.54547192,0.000149,2]
[356833905,1743299432453,-292.93632643,0.000149,2]
[356833906,1743299432462,-500.20704329,0.00014973,2]
[356833907,1743299432475,-185.0,0.00014986,2]
[356833908,1743299432484,-309.74648932,0.00014999,2]
[356833909,1743299432495,-300.0,0.00014999,2]
[356833910,1743299432505,-616.0,0.00015,2]
[356833911,1743299432514,-118893.45193966,0.00015,2]
[356833912,1743299432531,-18646.7307762,0.00015,2]
[356833913,1743299432543,-3095.0618137,0.00015,2]
[356833914,1743299432556,-474.74993295,0.00015,2]
[356833915,1743299432572,-1000.09,0.00015,2]
[356833916,1743299432587,-692.5527292,0.00015,2]
[356833948,1743299435939,545.57,0.00032961,120]
[356833949,1743299438337,-653.0,0.00015,2]
[356833950,1743299438347,-87.75,0.00015,2]
[356833951,1743299438358,-907.55265801,0.00015,2]
[356833952,1743299438465,-458.84855654,0.00015,2]
[356833953,1743299438479,-663.85289851,0.00015,2]
[356833974,1743299440505,-271.24477199,0.00015,2]
[356833975,1743299440518,-293.22318818,0.00015,2]
[356833976,1743299440590,-656.14,0.00015,2]
[356833977,1743299440726,-1000.0,0.000148,2]
[356833978,1743299440736,-2330.14103743,0.00015,2]
[356833979,1743299440750,-1202053.46971498,0.00015,2]
[356833980,1743299440760,-3073838.96773718,0.00015,2]
[356833981,1743299440770,-2880.541183,0.0001513,2]
[356833982,1743299440780,-1242.9640341,0.0001523,2]
[356833983,1743299440790,-150.0,0.000153,2]
[356833984,1743299440800,-303.59,0.0001531,2]
[356833985,1743299440810,-7753.34,0.0001531,2]
[356833986,1743299440820,-778.54,0.00015633,2]
[356833987,1743299440830,-187.89,0.00015746,2]
[356833988,1743299440840,-167.03,0.00015811,2]
[356833989,1743299440851,-250.0,0.0001582,2]
[356833990,1743299440860,-11515.21,0.00015861,2]
[356833991,1743299440870,-1173.64068061,0.000159,2]
[356833992,1743299440880,-3807.32,0.00015933,2]
[356833993,1743299440890,-17749.54547185,0.00015998,2]
[356833994,1743299440901,-661.31,0.00016103,2]
[356833995,1743299440912,-5000.01,0.00016125,2]
[356833996,1743299440922,-150.0,0.00016132,7]
[356833997,1743299440932,-1000.0,0.00016145,2]
[356833998,1743299440943,-544.32,0.00016158,2]
[356833999,1743299440952,-150.0,0.0001624,2]
[356834000,1743299440962,-160.32,0.00016246,2]
[356834001,1743299440971,-2642.3,0.00016525,2]
[356834002,1743299440982,-160.32,0.00016571,2]
[356834003,1743299440992,-160.32,0.00016895,2]
[356834004,1743299441003,-1173.64068061,0.00017,2]
[356834005,1743299441013,-437.24,0.00017053,2]
[356834006,1743299441023,-17749.54547185,0.00017096,2]
[356834007,1743299441033,-1173.64068061,0.000181,2]
[356834008,1743299441044,-1000.0,0.00018163,2]
[356834009,1743299441054,-17749.54547185,0.00018194,2]
[356834010,1743299441064,-544.32,0.00018422,2]
[356834011,1743299441074,-169.37,0.000186,2]
[356834012,1743299441084,-2049.521,0.00018903,2]
[356834013,1743299441094,-646.504,0.00018903,2]
[356834014,1743299441104,-1288.537,0.00018903,2]
[356834015,1743299441114,-1429.167,0.00018903,2]
[356834016,1743299441124,-576.192,0.00018903,2]
[356834017,1743299441134,-1280.566,0.00018903,2]
[356834018,1743299441144,-792.0,0.00018903,2]
[356834019,1743299441154,-912.619,0.00018903,2]
[356834020,1743299441164,-4110.199,0.00018903,2]
[356834021,1743299441175,-1439.078,0.00018903,2]
[356834022,1743299441185,-545.617,0.00018903,2]
[356834023,1743299441196,-152.775,0.00018903,2]
[356834024,1743299441206,-3947.0,0.00018903,2]
[356834025,1743299441216,-1121.725,0.00018903,2]
[356834026,1743299441227,-502.54896514,0.00018973,2]
[356834027,1743299441239,-433.94796189,0.00018973,2]
[356834028,1743299441249,-572.60714031,0.00018973,2]
[356834029,1743299441259,-73821.24992175,0.00019,2]
[356834030,1743299441269,-392.62907554,0.00019,2]
[356834031,1743299441279,-314.47541718,0.00019,2]
[356834032,1743299441289,-1173.64068061,0.000192,2]
[356834033,1743299441299,-17749.54547185,0.00019292,2]
[356834034,1743299441310,-251.47406478,0.00019556,2]
[356834035,1743299441320,-24161.22684193,0.0002,4]
[356834036,1743299441330,-404.64097238,0.0002,2]
[356834037,1743299441340,-242.78458343,0.0002,2]
[356834038,1743299441349,-160.415,0.0002,13]
[356834039,1743299441359,-151.52,0.0002,2]
[356834040,1743299441369,-151.52,0.0002,2]
[356834041,1743299441379,-151.52,0.0002,2]
[356834042,1743299441389,-151.52,0.0002,2]
[356834043,1743299441399,-151.52,0.0002,2]
[356834044,1743299441410,-151.52,0.0002,2]
[356834045,1743299441420,-151.52,0.0002,2]
[356834046,1743299441430,-151.52,0.0002,2]
[356834047,1743299441440,-151.52,0.0002,2]
[356834048,1743299441450,-151.52,0.0002,2]
[356834049,1743299441460,-151.52,0.0002,2]
[356834050,1743299441471,-151.52,0.0002,2]
[356834051,1743299441481,-151.52,0.0002,2]
[356834052,1743299441495,-151.52,0.0002,2]
[356834053,1743299441504,-151.52,0.0002,2]
[356834054,1743299441514,-151.52,0.0002,2]
[356834055,1743299441524,-151.52,0.0002,2]
[356834056,1743299441535,-151.52,0.0002,2]
[356834057,1743299441545,-151.52,0.0002,2]
[356834058,1743299441555,-151.52,0.0002,2]
[356834059,1743299441564,-151.52,0.0002,2]
[356834060,1743299441574,-151.52,0.0002,2]
[356834061,1743299441584,-151.52,0.0002,2]
[356834062,1743299441594,-151.52,0.0002,2]
[356834063,1743299441603,-151.52,0.0002,2]
[356834064,1743299441613,-151.52,0.0002,2]
[356834065,1743299441622,-151.52,0.0002,2]
[356834066,1743299441631,-151.52,0.0002,2]
[356834067,1743299441641,-151.52,0.0002,2]
[356834068,1743299441650,-151.52,0.0002,2]
[356834069,1743299441660,-151.52,0.0002,2]
[356834070,1743299441670,-151.52,0.0002,2]
[356834071,1743299441679,-151.52,0.0002,2]
[356834072,1743299441689,-151.52,0.0002,2]
[356834073,1743299441698,-151.52,0.0002,2]
[356834074,1743299441707,-1000.0,0.00020181,2]
[356834075,1743299441717,-318.04,0.000202,2]
[356834076,1743299441726,-1666.74,0.000202,2]
[356834077,1743299441736,-1173.64068061,0.000203,2]
[356834078,1743299441745,-17749.54547185,0.00020391,2]
[356834079,1743299441755,-544.32,0.00020685,2]
[356834080,1743299441765,-1173.64068061,0.000214,2]
[356834081,1743299441774,-151.0,0.00021433,7]
[356834082,1743299441783,-151.0,0.00021433,7]
[356834083,1743299441792,-151.0,0.00021433,7]
[356834084,1743299441802,-151.0,0.00021433,7]
[356834085,1743299441811,-151.0,0.00021433,7]
[356834086,1743299441821,-151.0,0.00021433,7]
[356834087,1743299441830,-151.0,0.00021433,7]
[356834088,1743299441841,-151.0,0.00021433,7]
[356834089,1743299441850,-151.0,0.00021433,7]
[356834090,1743299441859,-151.0,0.00021433,7]
[356834091,1743299441869,-151.0,0.00021433,7]
[356834092,1743299441878,-151.0,0.00021433,7]
[356834093,1743299441887,-151.0,0.00021433,7]
[356834094,1743299441897,-151.0,0.00021433,7]
[356834095,1743299441906,-151.0,0.00021433,7]
[356834096,1743299441916,-151.0,0.00021433,7]
[356834097,1743299441925,-151.0,0.00021433,7]
[356834098,1743299441934,-151.0,0.00021433,7]
[356834099,1743299441944,-151.0,0.00021433,7]
[356834100,1743299441953,-151.0,0.00021433,7]
[356834101,1743299441963,-151.0,0.00021433,7]
[356834102,1743299441972,-151.0,0.00021433,7]
[356834103,1743299441982,-151.0,0.00021433,7]
[356834104,1743299441992,-151.0,0.00021433,7]
[356834105,1743299442001,-278.48205791,0.00021433,7]
[356834106,1743299442011,-17749.54547185,0.00021489,2]
[356834107,1743299442020,-540.189,0.00021903,2]
[356834108,1743299442030,-1000.0,0.000222,2]
[356834109,1743299442039,-1173.64068061,0.000225,2]
[356834110,1743299442049,-1294.790803,0.00022507,2]
[356834111,1743299442058,-3000.6485539,0.00022507,2]
[356834112,1743299442067,-17749.54547185,0.00022587,2]
[356834113,1743299442077,-544.32,0.00022949,2]
[356834114,1743299442086,-274.44141583,0.00023,2]
[356834115,1743299442096,-1173.64068061,0.000236,2]
[356834116,1743299442105,-151.52,0.00023675,2]
[356834117,1743299442115,-17749.54547185,0.00023685,2]
[356834118,1743299442125,-188.8,0.00023836,2]
[356834119,1743299442134,-174.0,0.00023896,2]
[356834120,1743299442143,-1000.0,0.00024218,2]
[356834121,1743299442152,-1000.0,0.00024658,2]
[356834122,1743299442161,-1173.64068061,0.000247,2]
[356834123,1743299442170,-1346.6175719,0.00024783,2]